Cogmind - Beta 11.1 @@@ ROGUE MODE // 2022.07.07 @ 01:37:34 Player: Grimhilt Result: Destroyed by Y-45 Defender with Beam Rifle Performance ------------- Evolutions (1) 500 Regions Visited (3) 600 Robots Destroyed (32) 160 Value Destroyed (987) 987 Prototype IDs (1) 20 Alien Tech Used (0) 0 Bonus (0) 0 TOTAL SCORE: 2267 Bonus ------- None Cogmind --------- Core Integrity 0/400 Matter 275/300 Energy 100/100 System Corruption 0% Temperature Warning (389) Movement Walking (330) Ox3 Location -9/Storage Parts ------- > --- POWER (1) -------- (None) > --- PROPULSION (4) --- Aluminum Leg > --- UTILITY (2) ------ High-capacity Storage Unit > --- WEAPON (2) ------- (None) > --- INVENTORY (20) --- Ion Engine Ion Engine Ion Engine Light Ion Engine Aluminum Leg Aluminum Leg Cooling System High-capacity Storage Unit Compact Matter Pod (150) Compact Matter Pod (150) Power Shielding Small Laser Ion Cannon Ion Cannon Rocket Launcher Improved Datajack Improved Datajack Peak State ------------ > --- POWER ------------ Light Nuclear Core > --- PROPULSION ------- Aluminum Leg Aluminum Leg Aluminum Leg Aluminum Leg > --- UTILITY ---------- High-capacity Storage Unit Hardened Light Armor Plating > --- WEAPON ----------- Beam Rifle Advanced Beam Cannon > --- INVENTORY -------- Ion Engine Ion Engine Ion Engine Light Ion Engine Aluminum Leg Aluminum Leg Cooling System High-capacity Storage Unit Compact Matter Pod Compact Matter Pod Power Shielding Light Armor Plating Small Laser Ion Cannon Ion Cannon Rocket Launcher Improved Datajack Improved Datajack [Rating: 18] Favorites ----------- Power Ion Engine Engine Ion Engine Power Core Light Nuclear Core Propulsion Aluminum Leg Leg Aluminum Leg Utility High-capacity Storage Unit Storage High-capacity Storage Unit Protection Power Shielding Weapon Medium Laser Energy Gun Medium Laser Energy Cannon Advanced Beam Cannon Build | -11 -10 -9 -9 ------- Run | Scr Mat Mat Sto Slots Evolved 2 | . . 2 . Power . | . . . . Propulsion 2 | . . 2 . Utility . | . . . . Weapon . | . . . . Parts Attached 30 | 6 3 19 2 Power 4 | 1 . 2 1 Engine 3 | 1 . 2 . Core 1 | . . . 1 Reactor . | . . . . Propulsion 12 | 2 . 10 . Treads . | . . . . Leg 12 | 2 . 10 . Wheel . | . . . . Hover . | . . . . Flight . | . . . . Utility 7 | 1 2 3 1 Device . | . . . . Storage 2 | 1 1 . . Processor . | . . . . Hackware . | . . . . Protection 5 | . 1 3 1 Artifact . | . . . . Weapon 7 | 2 1 4 . Energy Gun 6 | 2 1 3 . Energy Cannon 1 | . . 1 . Ballistic Gun . | . . . . Ballistic Cannon . | . . . . Launcher . | . . . . Special Weapon . | . . . . Impact Weapon . | . . . . Slashing Weapon . | . . . . Piercing Weapon . | . . . . Special Melee Weapon . | . . . . Unidentified Prototypes 1 | . . 1 . Parts Lost 10 | . . 3 7 Power 1 | . . . 1 Propulsion 5 | . . 2 3 Utility 1 | . . . 1 Weapon 3 | . . 1 2 Highest Loss Streak 7 | . . 2 7 To Critical Strikes . | . . . . Average Slot Usage (%) 99 | . 99 99 91 Engine 11 | . 14 10 4 Leg 37 | . 28 43 40 Storage 12 | . 14 11 11 Protection 11 | . 13 11 9 Energy Gun 20 | . 28 16 11 Energy Cannon 3 | . . 5 9 Naked Turns . | . . . . Heaviest Build 57 | 13 49 57 57 Greatest Support 40 | 20 20 40 40 Greatest Overweight (x) 4 | . 2 2 4 Average Overweight (x) . | . . 1 1 Largest Inventory Capacity 20 | 8 20 20 20 Average Capacity 16 | 6 10 20 20 Most Carried 19 | 5 8 19 18 Average Carried 11 | 3 4 15 17 Final Capacity 20 | 8 20 20 20 Final Carried 18 | 2 8 18 17 Class Distribution -------------------- 50% | Scavenger-Mutant 49% | Mutant Dominant Class ---------------- Mutant | -10/Materials Scavenger-Mutant | -9/Materials Scavenger-Mutant | -9/Storage Resources | -11 -10 -9 -9 ----------- Run | Scr Mat Mat Sto Matter Collected 889 | 204 95 575 15 Remotely . | . . . . Salvage Created 1251 | . 369 754 128 Parts 62 | . 16 39 7 Haulers Intercepted . | . . . . Recyclers Shooed 6 | . 3 3 . Parts Field Recycled . | . . . . Retrieved Matter . | . . . . Parts Self-Destructed . | . . . . Prevented . | . . . . Kills | -11 -10 -9 -9 ------- Run | Scr Mat Mat Sto Combat Hostiles Destroyed 27 | . 8 16 3 Guns 21 | . 8 12 1 Cannons 4 | . . 3 1 AOE 1 | . . 1 . Classes Destroyed 7 | . 4 3 . Builder 1 | . . 1 . Recycler 1 | . 1 . . Watcher 3 | . 2 1 . Swarmer 3 | . 3 . . Grunt 19 | . 5 12 2 Brawler 1 | . . 1 . Sentry 4 | . . 3 1 Best Kill Streak 6 | . 6 3 3 Combat Bots Only 4 | . 4 3 3 Max Kills in Single Turn 1 | . 1 1 1 Gunslinging . | . . . . Exploded 1 | . . 1 . Melee . | . . . . Uniques/NPCs Destroyed . | . . . . Combat | -11 -10 -9 -9 -------- Run | Scr Mat Mat Sto Damage Taken 1891 | . 254 1127 510 Core 501 | . 93 282 126 Absorbed by Shields . | . . . . Redirected to Shielding 16 | . 3 13 . Core Remaining (%) 81 | 100 62 . . Volleys Fired 118 | . 35 75 8 Largest 2 | . 2 2 2 Hottest 124 | . 90 124 124 Shots Fired 195 | . 69 110 16 Gun 169 | . 69 92 8 Cannon 26 | . . 18 8 Launcher . | . . . . Special . | . . . . Kinetic . | . . . . Thermal 177 | . 69 92 16 Explosive . | . . . . Electromagnetic 18 | . . 18 . Robot Hit Streak 12 | . 7 12 8 Robot Miss Streak 6 | . 6 2 1 Penetration Max . | . . . . Secondary Targets . | . . . . Shots Hit Robots 120 | . 32 78 10 Core Hits 55 | . 20 33 2 Critical Kills . | . . . . Critical Parts Destroyed . | . . . . Critical Strikes 4 | . 1 3 . Burn 4 | . 1 3 . Melee Attacks . | . . . . Impact . | . . . . Slashing . | . . . . Piercing . | . . . . Sneak Attacks . | . . . . Combat Hostiles . | . . . . Follow-up Attacks . | . . . . Damage Inflicted 1749 | . 394 1167 188 Guns 1346 | . 394 850 102 Cannons 329 | . . 246 83 Explosions 65 | . . 65 . Melee . | . . . . Ramming 9 | . . 6 3 Kinetic . | . . . . Thermal 1572 | . 394 993 185 Explosive . | . . . . Electromagnetic 168 | . . 168 . Impact . | . . . . Slashing . | . . . . Piercing . | . . . . Highest Corruption 2 | . 2 . . Average Corruption 2 | . 2 . . Corruption Purged . | . . . . Corruption Blocked . | . . . . Effects 5 | . 5 . . Message Errors 3 | . 3 . . Matter Fused 1 | . 1 . . Energy Discharges 1 | . 1 . . Overload Shots . | . . . . Overflow Damage . | . . . . Projectiles . | . . . . Explosions . | . . . . Melee . | . . . . Knockbacks . | . . . . Impact . | . . . . Kinetic . | . . . . Secondary . | . . . . Self-Inflicted Damage 4 | . . 4 . Shots 1 | . . 1 . Rammed . | . . . . Targets Rammed 2 | . . 1 1 Kicked 2 | . . 1 1 Crushed . | . . . . Highest Temperature 630 | . 274 630 541 Average Temperature 168 | . 97 181 355 Received Heat Transfer 711 | . 84 393 234 Effects 36 | . . 27 9 Shutdowns 3 | . . 1 2 Energy Bleed 4 | . . 4 . Interference 6 | . . 6 . Matter Decay 3 | . . 2 1 Short Circuit 1 | . . 1 . Damage (minor) 4 | . . 3 1 Damage (major) 13 | . . 8 5 Damage (core) 2 | . . 2 . Siege Activations . | . . . . Robots Corrupted . | . . . . Combat Hostiles . | . . . . Parts Fried . | . . . . Impact Corruptions . | . . . . Robots Melted 1 | . . . 1 Combat Hostiles 1 | . . . 1 Parts Melted 7 | . 1 6 . Heat Transferred 4168 | . 1163 2598 407 Parts Sabotaged . | . . . . Parts Stolen . | . . . . Parts Stripped . | . . . . Power Chain Reactions 2 | . . 2 . Missiles Intercepted . | . . . . Alert | -11 -10 -9 -9 ------- Run | Scr Mat Mat Sto Peak Influence 367 | . 227 367 169 Initial 91 | . . 26 91 Average 140 | . 58 202 116 Maximum Alert Level 1 | . 1 1 . Low Security (%) 64 | 100 91 41 100 Level 1 35 | . 8 58 . Level 2 . | . . . . Level 3 . | . . . . Level 4 . | . . . . Level 5 . | . . . . High Security . | . . . . Max Security . | . . . . Squads Dispatched 7 | . 2 3 2 Investigation 3 | . 1 2 . Extermination . | . . . . Reinforcement 3 | . 1 1 1 Assault . | . . . . Garrison 1 | . . . 1 Intercept . | . . . . Searches Triggered . | . . . . Construction Impeded . | . . . . Haulers Reinforced . | . . . . Active Scanning Responses . | . . . . Cargo Convoy Interrupts . | . . . . Stealth | -11 -10 -9 -9 --------- Run | Scr Mat Mat Sto Distress Signals 5 | . 1 2 2 Communications Jammed . | . . . . Distress Signals . | . . . . Times Spotted 46 | . 14 24 8 Peak Tracking Total 6 | . 6 5 5 Tactical Retreats 1 | . 1 . . Traps | -11 -10 -9 -9 ------- Run | Scr Mat Mat Sto Traps Triggered 2 | . 2 . . Indirectly . | . . . . Trap Hack Attempts . | . . . . Triggered . | . . . . Disarmed . | . . . . Reprogrammed 6 | . . 6 . Reused 1 | . . 1 . Traps Extracted . | . . . . Installed . | . . . . Triggered 1 | . . 1 . Machines | -11 -10 -9 -9 ---------- Run | Scr Mat Mat Sto Machines Disabled 1 | . . 1 . Max in Single Turn 1 | . . 1 . Machines Sabotaged . | . . . . Garrisons Compromised . | . . . . Overloaded Fab Kills . | . . . . Hacking | -11 -10 -9 -9 --------- Run | Scr Mat Mat Sto Machines Accessed 2 | . . 1 1 Terminals 2 | . . 1 1 Fabricators . | . . . . Repair Stations . | . . . . Recycling Units . | . . . . Scanalyzers . | . . . . Garrison Access . | . . . . Total Hacks 4 | . . 3 1 Successful 4 | . . 3 1 Failed . | . . . . Catastrophic . | . . . . Database Lockouts . | . . . . Manual . | . . . . Terminals 4 | . . 3 1 Fabricators . | . . . . Repair Stations . | . . . . Recycling Units . | . . . . Scanalyzers . | . . . . Garrison Access . | . . . . Terminal Hacks 4 | . . 3 1 Open Door 1 | . . . 1 Locate Traps 1 | . . 1 . Reprogram Traps 2 | . . 2 . Fabricator Hacks . | . . . . Repair Station Hacks . | . . . . Recycling Unit Hacks . | . . . . Scanalyzer . | . . . . Garrison Access Hacks . | . . . . Unauthorized Hacks . | . . . . Terminals . | . . . . Fabricators . | . . . . Repair Stations . | . . . . Recycling Units . | . . . . Scanalyzers . | . . . . Garrison Access . | . . . . Data Cores Recovered . | . . . . Used . | . . . . Hacking Detections 2 | . . 1 1 Full Trace Events 1 | . . 1 . Feedback Events . | . . . . Feedback Blocked . | . . . . Robot Schematics Acquired . | . . . . Robots Built . | . . . . Authchips . | . . . . Time . | . . . . Total Robot Build Rating . | . . . . Part Schematics Acquired . | . . . . Parts Built . | . . . . Authchips . | . . . . Time . | . . . . Total Part Build Rating . | . . . . Parts Repaired . | . . . . Time . | . . . . Parts Recycled . | . . . . Recycled Matter . | . . . . Retrieved Matter . | . . . . Retrieved Components . | . . . . Parts Scanalyzed . | . . . . Part Schematics Acquired . | . . . . Parts Damaged . | . . . . Bothacking | -11 -10 -9 -9 ------------ Run | Scr Mat Mat Sto Used RIF Installer . | . . . . Robots Hacked . | . . . . Non-combat . | . . . . Combat . | . . . . Robot Hacks Applied . | . . . . Relay Couplers Released . | . . . . Fabnet Peak Effective % . | . . . . Robots Rewired . | . . . . Allies Hacked . | . . . . Hacks Repelled . | . . . . Allies | -11 -10 -9 -9 -------- Run | Scr Mat Mat Sto Total Allies . | . . . . Largest Group . | . . . . Highest-Rated Group . | . . . . Highest-Rated Ally . | . . . . Total Orders . | . . . . Ally Attacks . | . . . . Total Damage . | . . . . Kills . | . . . . Allies Corrupted . | . . . . Allies Melted . | . . . . Intel | -11 -10 -9 -9 ------- Run | Scr Mat Mat Sto Robot Analysis Total . | . . . . Derelict Logs Recovered . | . . . . Drone Launches . | . . . . Drone Recoveries . | . . . . Exploration | -11 -10 -9 -9 ------------- Run | Scr Mat Mat Sto Turns Passed 1555 | 43 565 874 73 Spaces Moved 533 | 31 188 295 19 Core 9 | 9 . . . Treads . | . . . . Legs 524 | 22 188 295 19 Wheels . | . . . . Hover . | . . . . Flight . | . . . . Fastest Speed 50 | 50 120 190 190 Average Speed 165 | 99 132 190 208 Slowest Speed 400 | 120 260 260 400 Overloaded Moves . | . . . . Propulsion Burnouts . | . . . . Robots Hopped . | . . . . Cave-ins Triggered . | . . . . Exploration Rate (%) 22 | 3 50 30 5 Regions Visited 3 Branch Regions 1 Pre-discovered Areas . | . . . . Known Exits Taken . | . . . . Unknown Exits Taken 3 | 1 1 1 . Scrap Searched . | . . . . Spaces Dug . | . . . . Terrain Destroyed 9 | . . 9 . Melee . | . . . . Projectile . | . . . . AOE 9 | . . 9 . Terrain Rammed . | . . . . Walls Destroyed . | . . . . Machines Disabled . | . . . . Actions | -11 -10 -9 -9 --------- Run | Scr Mat Mat Sto Total 1010 | 41 437 496 36 Wait 277 | . 200 72 5 Move 530 | 30 187 294 19 Hop . | . . . . Pick Up 39 | 5 9 25 . Fast Attach 3 | 3 . . . Attach 11 | 3 1 7 . Detach . | . . . . Swap 16 | . 2 12 2 Drop 14 | . 3 10 1 Fire 118 | . 35 75 8 Melee . | . . . . Ram . | . . . . Kick 2 | . . 1 1 Crush . | . . . . Escape Stasis . | . . . . Rewire . | . . . . Trap . | . . . . Miscellaneous . | . . . . Route ------- -11/Scrapyard -10/Materials (discovered 2 exits: *Mat / [*Min]) -9/Materials (discovered 3 exits: [*Mat] / *Sto x2) -9/Storage History --------- Turn | Location | Event 11 | -11/Scrapyard | Discovered new exit (range 15) 44 | -11/Scrapyard | Entered Materials 93 | -10/Materials | Discovered new exit (range 14) 312 | -10/Materials | Build established: Mutant 495 | -10/Materials | Discovered new exit (range 11) 609 | -10/Materials | Entered another Materials area 609 | -9/Materials | Evolved 2 slots: Propulsion x2 667 | -9/Materials | Discovered new exit (range 16) 1061 | -9/Materials | Build established: Scavenger-Mutant 1103 | -9/Materials | Discovered new exit (range 11) 1162 | -9/Materials | Core integrity fell below 50% 1448 | -9/Materials | Discovered new exit (range 6) 1483 | -9/Materials | Entered Storage 1517 | -9/Storage | Garrison activated, responded to threat 1551 | -9/Storage | Core integrity fell below 20% 1556 | -9/Storage | Destroyed by Y-45 Defender with Beam Rifle Last Messages --------------- 01531_ Aluminum Leg destroyed. 01534_ G-34 Mercenary destroyed. 01535_ Power failure, Lgt. Nuclear Core shutdown. 01537_ Y-45 Defender destroyed. 01539_ Overheating: Lgt. Nuclear Core damaged (-31). 01540_ Acquired 15 matter. 01545_ Overheating: Matter decay (-57). 01546_ Power failure, Lgt. Nuclear Core shutdown. 01546_ Overheating: Beam Rifle damaged (-20). 01546_ Lgt. Nuclear Core destroyed. 01546_ Kicked Y-45 Defender out of the way. 01547_ Overheating: Adv. Beam Cannon damaged (-13). 01547_ Overheating: Beam Rifle damaged (-20). 01547_ Overheating: Aluminum Leg damaged (-30). 01547_ Overheating: Aluminum Leg damaged (-7). 01547_ Lgt. Armor Plating destroyed. 01547_ Adv. Beam Cannon destroyed. 01550_ Aluminum Leg destroyed. 01550_ Beam Rifle destroyed. 01555_ R-06 Scavenger collects Lgt. Treads. Map ----- +----------------------------------------------------+ | ???????????????????????????????????? | | ???????????????????????????????????? | | ???????????????????????????????????? | | ???????????????????????????????????? | | ???????????????????????????????????? | | ???????????????????????????????????? | | ???????????????????????????????????? | | ???????????????????????????????????? | | ???????????????????????????????????? | | ???????????????????????????????????? | | ???????????????????????????????????? | | ?????????????????????????#####?????? | | ????????????????????????? #?????? | | ????????????????????????? #?????? | | ????????????????????????? ??????? | | ????????????????????????? ??????? | | ???????????????????????? ??????? | | ????????????????????????# #??????? | | ????????????????????????# #??????? | | ????????????????????????# #??????? | | ????????????????????????# #??????? | | ????????????????????????+ #??????? | | ????????????????????????# g #??????? | | ????????????????????????# #??????? | | ????????????????????????# #??????? | | ????????????????????????#@ #??????? | | ????????????????????????# #??????? | | ????????????????????????#gY #??????? | | ??????????????????????### gr#??????? | | ??????????????????????#""! *#??????? | | ??????????????????????#"Y%=%#######? | | ??????????????????????#""*!=;%#!!!!# | | ??????????????????????### #! # | | ????????????????????????# # #!!!!# | | ????????????????????????# #T#?###? | | ????????????????????????# ###????? | | ????????????????????????# #??????? | | ????????????????????????#####??????? | | ???????????????????????????????????? | | ???????????????????????????????????? | | ???????????????????????????????????? | | ???????????????????????????????????? | | ???????????????????????????????????? | | ???????????????????????????????????? | | ???????????????????????????????????? | | ???????????????????????????????????? | | ???????????????????????????????????? | | ???????????????????????????????????? | | ???????????????????????????????????? | | ???????????????????????????????????? | +----------------------------------------------------+ Best States ------------- Heat Dissipation 28 Energy Generation 14 Energy Capacity 250 Matter Stores 300 Matter Capacity 300 Sight Range 16 Terrain Scan Density 10 Armor Coverage 150 Power Shielding 33 Evasion (%) 55 Item Schematics ----------------- None Robot Schematics ------------------ None Fabricated ------------ Nothing Alien Tech Used ----------------- None Achievements -------------- None Challenges ------------ None Game ------ Seed ChargeTerrabombCanceller Manual? 0 Play Time 00:11:58 Cumulative 18.9 hours Start 2022.07.07 @ 01:25:00 End 2022.07.07 @ 01:37:34 Sessions 1 Manual Loads 0 Difficulty Rogue Special Mode None Game No. 33 Rogue 33 Adventurer 0 Explorer 0 Win Type - Total 0 Types 0/0/0/0/0/0/0/0/0 Lore% 24 Gallery% 23 Achievement% 19 Wizard Run 0 Options --------- ASCII 0 Keyboard 0 Movement Mouse Keybinds 0 Fullscreen 2 Font 18/X11 Map View 76x50 Tactical HUD 1 Map Filters NONE Filters NONE Steam 1 RUN: 5c383bab-5f8a-407a-9d7e-adce544b5ca7